Cogmind - Beta 16 @@@ ROGUE MODE // 2025.11.19 @ 03:05:25 // Winter2019/RPGLIKE Player: Thesoulkiller104 Result: Destroyed by P-60 Hacker with Shock Rifle Performance ------------- Evolutions (4) 2000 Regions Visited (12) 2400 Robots Destroyed (201) 1005 Value Destroyed (8027) 8027 Prototype IDs (16) 320 Alien Tech Used (0) 0 Bonus (2579) 2579 TOTAL SCORE: 16331 Bonus ------- High Alert Combat Kills 961 Follower Combat Kills 118 Entered Garrisons 200 Used RIF Installer 1000 Met Data Miner 300 Cogmind --------- Core Integrity 0/1000 Matter 297/300 Energy 416/425 System Corruption 1% Temperature Warning (320) Movement Walking (187) Ox1 Location -6/Factory Parts ------- > --- POWER (1) -------- Antimatter Reactor > --- PROPULSION (5) --- Carbon-fiber Leg Carbon-fiber Leg VSS Leg Flexi-carbon Leg Flexi-carbon Leg > --- UTILITY (7) ------ Improved Heat Sink Energy Filter Improved Particle Charger Hardened Heavy Armor Plating Hacking Suite Makeshift Hacking Suite > --- WEAPON (3) ------- Heavy Particle Cannon Heavy Particle Cannon Heavy Ion Cannon > --- INVENTORY (3) ---- Improved Cryofiber Web Hardened Medium Armor Plating Makeshift Hacking Suite Peak State ------------ > --- POWER ------------ Antimatter Reactor > --- PROPULSION ------- Carbon-fiber Leg Carbon-fiber Leg VSS Leg Flexi-carbon Leg Flexi-carbon Leg > --- UTILITY ---------- Improved Heat Sink Energy Filter Improved Particle Charger Hardened Heavy Armor Plating Hacking Suite Makeshift Hacking Suite > --- WEAPON ----------- Heavy Particle Cannon Heavy Particle Cannon Heavy Ion Cannon > --- INVENTORY -------- Improved Cryofiber Web Hardened Medium Armor Plating Makeshift Hacking Suite [Rating: 64] Favorites ----------- Power Fission Core Engine Ion Engine Power Core Fission Core Reactor Antimatter Reactor Propulsion Improved Aluminum Leg Leg Improved Aluminum Leg Utility Improved Heat Sink Device Improved Heat Sink Hackware Makeshift Hacking Suite Protection Hardened Heavy Armor Plating Weapon Heavy Particle Cannon Energy Gun Medium Laser Energy Cannon Heavy Particle Cannon Ballistic Gun Assault Rifle Special Melee Weapon Improved Datajack Build | -11 -10 -9 -9 -8 -8 -8 -7 -7 -7 -7 -6 -6 ------- Run | Yrd Mat Mat Min Mat Sto Gar Fac Low Low Dat Pro Fac Slots Evolved 12 | 2 2 . . 2 1 2 . 1 . . . 2 Power . | . . . . . . . . . . . . . Propulsion 4 | . 1 . . 1 1 . . . . . . 1 Utility 6 | 2 . . . . . 2 . 1 . . . 1 Weapon 2 | . 1 . . 1 . . . . . . . . Parts Attached 49 | 3 7 6 2 8 3 6 3 1 . . . 10 Power 4 | 1 . . . 1 . 1 . . . . . 1 Engine 2 | 1 . . . 1 . . . . . . . . Core 1 | . . . . . . 1 . . . . . . Reactor 1 | . . . . . . . . . . . . 1 Propulsion 16 | 1 2 1 1 3 1 . . . . . . 7 Treads . | . . . . . . . . . . . . . Leg 16 | 1 2 1 1 3 1 . . . . . . 7 Wheel . | . . . . . . . . . . . . . Hover . | . . . . . . . . . . . . . Flight . | . . . . . . . . . . . . . Utility 19 | . 3 2 1 3 . 5 2 1 . . . 2 Device 10 | . 3 . 1 1 . 4 1 . . . . . Storage . | . . . . . . . . . . . . . Processor . | . . . . . . . . . . . . . Hackware 2 | . . . . . . . . 1 . . . 1 Protection 7 | . . 2 . 2 . 1 1 . . . . 1 Artifact . | . . . . . . . . . . . . . Weapon 10 | 1 2 3 . 1 2 . 1 . . . . . Energy Gun 4 | 1 1 1 . . 1 . . . . . . . Energy Cannon 4 | . . 2 . 1 1 . . . . . . . Ballistic Gun 1 | . 1 . . . . . . . . . . . Ballistic Cannon . | . . . . . . . . . . . . . Launcher . | . . . . . . . . . . . . . Special Weapon . | . . . . . . . . . . . . . Impact Weapon . | . . . . . . . . . . . . . Slashing Weapon . | . . . . . . . . . . . . . Piercing Weapon . | . . . . . . . . . . . . . Special Melee Weapon 1 | . . . . . . . 1 . . . . . Unidentified Prototypes 3 | . . . 1 . 2 . . . . . . . Parts Lost 1 | . . . . 1 . . . . . . . . Power . | . . . . . . . . . . . . . Propulsion . | . . . . . . . . . . . . . Utility 1 | . . . . 1 . . . . . . . . Weapon . | . . . . . . . . . . . . . Highest Loss Streak 1 | . . . . 1 . . . . . . . . To Critical Strikes . | . . . . . . . . . . . . . Average Backups 2 | . . . 1 1 1 1 2 3 3 3 3 3 Power . | . . . . . . . . . . . . . Propulsion . | . . . . . . . . . . . . . Utility 1 | . . . . 1 1 1 2 2 3 3 3 3 Weapon . | . . . . . . . . . . . . . Tool/Special . | . . . . . . . . . . . . . Unused Backups 6 | . . . 1 . . 2 1 . . . . 2 Power . | . . . . . . . . . . . . . Propulsion . | . . . . . . . . . . . . . Utility 5 | . . . . . . 2 1 . . . . 2 Weapon 1 | . . . 1 . . . . . . . . . Tool/Special . | . . . . . . . . . . . . . Average Slot Usage (%) 92 | . 74 97 99 97 89 90 97 92 92 92 92 90 Engine 4 | . 14 12 12 10 9 5 . . . . . . Core 3 | . . . . . . 3 7 7 7 7 7 . Leg 28 | . 14 25 25 29 34 33 30 28 28 28 28 30 Device 18 | . 22 18 12 10 9 13 28 21 21 21 21 18 Hackware 2 | . . . . . . . . 4 7 7 7 9 Protection 9 | . . 16 24 19 9 8 7 7 7 7 7 6 Energy Gun 1 | . 20 . . . . . . . . . . . Energy Cannon 21 | . . 23 25 28 27 25 22 21 21 21 21 18 Peak Build Rating 64 | 3 7 13 26 32 36 46 48 50 50 50 50 64 Average Rating 37 | 2 5 12 13 23 34 37 46 48 50 50 50 61 On Entrance 30 | . 3 7 13 15 32 35 46 46 50 50 50 50 Avg Prop Armor Cover (%) . | . . . . . . . . . . . . . Naked Turns . | . . . . . . . . . . . . . Heaviest Build 64 | 7 12 24 34 46 46 58 58 58 58 58 58 64 Greatest Support 82 | 10 20 23 26 41 53 53 53 53 53 53 53 82 Greatest Overweight (x) 1 | . 1 1 1 1 1 1 1 1 1 1 1 1 Average Overweight (x) . | . . . . . . . . . 1 1 1 . Largest Inventory Capacity 3 | . 1 1 2 2 2 3 3 3 3 3 3 3 Average Capacity 2 | . . 1 1 2 2 2 3 3 3 3 3 3 Most Carried 3 | . 1 1 2 2 2 3 3 3 3 3 3 3 Average Carried 2 | . . . 1 2 2 1 2 2 3 3 3 3 Final Capacity 3 | . 1 1 2 2 2 3 3 3 3 3 3 3 Final Carried 3 | . 1 1 2 2 2 2 3 3 3 3 3 3 Class Distribution -------------------- 70% | Hacker-Gunner 14% | Scavenger-Mutant 9% | Mutant 5% | Scavenger-Gunner Dominant Class ---------------- Mutant | -10/Materials Scavenger-Mutant | -9/Materials Scavenger-Mutant | -9/Mines Scavenger-Gunner | -8/Materials Hacker-Gunner | -8/Storage Hacker-Gunner | -8/Garrison Hacker-Gunner | -7/Factory Hacker-Gunner | -7/Lower Caves Hacker-Gunner | -7/Lower Caves Hacker-Gunner | -7/Data Miner Hacker-Gunner | -6/Proximity Caves Hacker-Gunner | -6/Factory Resources | -11 -10 -9 -9 -8 -8 -8 -7 -7 -7 -7 -6 -6 ----------- Run | Yrd Mat Mat Min Mat Sto Gar Fac Low Low Dat Pro Fac Matter Collected 866 | 158 166 60 60 80 39 104 50 60 . . . 89 Remotely . | . . . . . . . . . . . . . Salvage Created 8281 | . 626 214 543 1159 446 1343 906 217 410 . 164 2253 Parts 441 | . 26 35 17 72 24 88 58 14 11 . 20 76 Haulers Intercepted 5 | . . . . 2 . . 2 . . . . 1 Recyclers Shooed 3 | . . . . . . . . . . . . 3 Parts Field Recycled . | . . . . . . . . . . . . . Retrieved Matter . | . . . . . . . . . . . . . Parts Self-Destructed 42 | . . . . . . . . 14 4 . 24 . Prevented 1 | . . . . . . . . . . . 1 . Parts Restored . | . . . . . . . . . . . . . Kills | -11 -10 -9 -9 -8 -8 -8 -7 -7 -7 -7 -6 -6 ------- Run | Yrd Mat Mat Min Mat Sto Gar Fac Low Low Dat Pro Fac Combat Hostiles Destroyed 184 | . 15 12 20 23 7 40 16 6 5 . 9 31 Guns 13 | . 13 . . . . . . . . . . . Cannons 163 | . . 12 20 23 7 39 16 6 5 . 8 27 AOE 1 | . . . . . . . . . . . . 1 Classes Destroyed 21 | . 4 1 4 5 . 2 1 1 1 . 1 1 Worker 2 | . . . . . . . . . . . . 2 Builder 2 | . . . 1 . . . 1 . . . . . Hauler 5 | . . . . 2 . . 2 . . . . 1 Recycler 9 | . 1 . 2 1 1 . . . . . . 4 Operator 2 | . . . . . . . 2 . . . . . Drone 2 | . . . . . . . . . . . 2 . Watcher 9 | . 1 2 . 2 1 . 2 . . . . 1 Swarmer 30 | . 3 6 3 . . 11 3 2 . . 2 . Saboteur 1 | . . . . . . 1 . . . . . . Grunt 83 | . 12 4 2 14 2 14 8 2 . . 3 22 Brawler 1 | . . . . 1 . . . . . . . . Duelist 3 | . . . 1 . . 1 . 1 . . . . Sentry 20 | . . 2 . 4 4 5 2 . . . 1 2 Demolisher 1 | . . . 1 . . . . . . . . . Specialist 3 | . . . . 2 . 1 . . . . . . Hunter 7 | . . . . 1 1 3 . . . . . 2 Programmer 10 | . . . . . . 4 2 . . . 1 3 Heavy 4 | . . . . 1 . . 1 . . . . 2 Behemoth 1 | . . . . . . . . 1 . . . . Assembled 13 | . . . 13 . . . . . . . . . Thug 3 | . . . . . . . . . 3 . . . Savage 2 | . . . . . . 1 . . 1 . . . Mutant 1 | . . . . . . . . . 1 . . . Best Kill Streak 7 | . 7 5 3 7 4 6 3 3 3 . 6 5 Combat Bots Only 6 | . 6 5 3 6 3 6 3 3 3 . 6 5 Max Kills in Single Turn 3 | . 1 1 2 2 2 2 2 2 1 . 1 3 Gunslinging . | . . . . . . . . . . . . . Exploded 1 | . . . . . . . . . . . . 1 Melee . | . . . . . . . . . . . . . Uniques/NPCs Destroyed . | . . . . . . . . . . . . . Combat | -11 -10 -9 -9 -8 -8 -8 -7 -7 -7 -7 -6 -6 -------- Run | Yrd Mat Mat Min Mat Sto Gar Fac Low Low Dat Pro Fac Hostile Shots Fired 616 | . 106 46 26 46 4 128 39 12 8 . 63 138 Missed 163 | . 23 13 5 11 1 43 15 2 3 . 11 36 Hits 453 | . 83 33 21 35 3 85 24 10 5 . 52 102 Projectile 453 | . 83 33 21 35 3 85 24 10 5 . 52 102 AOE 3 | . . . 2 . . . . . . . . 1 Critical Strikes 18 | . . . . 1 . 6 1 . 1 . 2 7 Damage Taken 6951 | . 939 320 294 620 48 1078 352 161 106 . 936 2097 Core 4754 | . 782 245 208 462 25 627 245 121 70 . 564 1405 Absorbed by Shields 73 | . . . . . . 73 . . . . . . Redirected to Core 3834 | . 504 168 140 284 25 574 245 88 48 . 522 1236 Regen/Repaired (Parts) 77 | . . . . 77 . . . . . . . . Core Remaining (%) 66 | 100 7 . 62 . . 91 . . . . 71 . Volleys Fired 397 | . 77 22 31 44 15 70 26 9 8 . 12 83 Largest 3 | . 2 2 2 3 3 3 3 3 3 . 3 3 Hottest 215 | . 90 150 150 215 215 215 215 215 215 . 215 215 Shots Fired 1002 | . 122 44 62 125 42 210 77 23 24 . 36 237 Gun 122 | . 122 . . . . . . . . . . . Cannon 880 | . . 44 62 125 42 210 77 23 24 . 36 237 Launcher . | . . . . . . . . . . . . . Special . | . . . . . . . . . . . . . Kinetic 8 | . 8 . . . . . . . . . . . Thermal 994 | . 114 44 62 125 42 210 77 23 24 . 36 237 Explosive . | . . . . . . . . . . . . . Electromagnetic . | . . . . . . . . . . . . . Robot Hit Streak 71 | . 13 10 8 10 8 18 36 52 70 . 71 44 Robot Miss Streak 4 | . 2 2 3 3 3 4 1 . . . 1 2 Penetration Max . | . . . . . . . . . . . . . Secondary Targets 1 | . 1 . . . . . . . . . . . Max Gunslinging Chain 1 | . 1 . . . . . . . . . . . Shots Hit Robots 654 | . 92 30 39 75 21 109 57 22 18 . 26 165 Core Hits 271 | . 27 15 25 30 9 40 27 9 8 . 12 69 Critical Kills 3 | . . . . . . . . . . . . 3 Critical Parts Destroyed . | . . . . . . . . . . . . . Critical Strikes 5 | . 2 . . . . . . . . . . 3 Burn 2 | . 2 . . . . . . . . . . . Meltdown 3 | . . . . . . . . . . . . 3 Melee Attacks 15 | . . . . . . . 9 6 . . . . Impact . | . . . . . . . . . . . . . Slashing . | . . . . . . . . . . . . . Piercing . | . . . . . . . . . . . . . Sneak Attacks 9 | . . . . . . . 7 2 . . . . Combat Hostiles . | . . . . . . . . . . . . . Follow-up Attacks . | . . . . . . . . . . . . . Damage Inflicted 21057 | . 1137 755 1170 2424 741 3747 1964 653 659 . 919 6888 Guns 1137 | . 1137 . . . . . . . . . . . Cannons 19566 | . . 755 1170 2424 741 3747 1964 653 659 . 919 6534 Explosions 344 | . . . . . . . . . . . . 344 Melee . | . . . . . . . . . . . . . Ramming 10 | . . . . . . . . . . . . 10 Kinetic 91 | . 91 . . . . . . . . . . . Thermal 20895 | . 1046 755 1170 2424 741 3747 1964 653 659 . 919 6817 Explosive 61 | . . . . . . . . . . . . 61 Electromagnetic . | . . . . . . . . . . . . . Impact . | . . . . . . . . . . . . . Slashing . | . . . . . . . . . . . . . Piercing . | . . . . . . . . . . . . . Highest Corruption 3 | . . . . . . 3 . . . . . 1 Average Corruption 2 | . . . . . . 2 . . . . . 1 Corruption Purged . | . . . . . . . . . . . . . Corruption Blocked . | . . . . . . . . . . . . . Effects 14 | . . . . . . 14 . . . . . . Message Errors 5 | . . . . . . 5 . . . . . . Matter Fused 4 | . . . . . . 4 . . . . . . Energy Discharges 1 | . . . . . . 1 . . . . . . Data Loss (minor) 1 | . . . . . . 1 . . . . . . Data Loss (major) 2 | . . . . . . 2 . . . . . . Alerts 1 | . . . . . . 1 . . . . . . Overload Shots . | . . . . . . . . . . . . . Overflow Damage 535 | . . 5 19 21 32 151 5 . . . 11 291 Projectiles 414 | . . 5 19 21 32 151 5 . . . 11 170 Explosions 121 | . . . . . . . . . . . . 121 Melee . | . . . . . . . . . . . . . Knockbacks . | . . . . . . . . . . . . . Impact . | . . . . . . . . . . . . . Kinetic . | . . . . . . . . . . . . . Secondary . | . . . . . . . . . . . . . Self-Inflicted Damage 38 | . . . . . . . . . . . . 38 Shots 1 | . . . . . . . . . . . . 1 Rammed . | . . . . . . . . . . . . . Targets Rammed 3 | . . . . . 1 . . . . . . 2 Kicked 3 | . . . . . 1 . . . . . . 2 Crushed . | . . . . . . . . . . . . . Highest Temperature 664 | . 210 114 120 23 27 144 126 120 189 . 323 664 Average Temperature 77 | . 78 30 39 4 15 28 35 41 67 . 144 137 Received Heat Transfer 2383 | . 489 42 6 243 27 343 63 12 63 . 315 780 Effects 10 | . . . . . . . . . . . . 10 Shutdowns 2 | . . . . . . . . . . . . 2 Interference 4 | . . . . . . . . . . . . 4 Short Circuit 1 | . . . . . . . . . . . . 1 Damage (major) 3 | . . . . . . . . . . . . 3 Siege Activations . | . . . . . . . . . . . . . Martial Activations . | . . . . . . . . . . . . . Shielding Activations . | . . . . . . . . . . . . . Robots Disrupted . | . . . . . . . . . . . . . Combat Hostiles . | . . . . . . . . . . . . . Robots Corrupted . | . . . . . . . . . . . . . Combat Hostiles . | . . . . . . . . . . . . . Parts Fried . | . . . . . . . . . . . . . Impact Corruptions . | . . . . . . . . . . . . . Robots Melted 7 | . 2 . . . . 1 . . . . 1 3 Combat Hostiles 7 | . 2 . . . . 1 . . . . 1 3 Parts Melted 48 | . 9 1 . 3 . 12 4 1 2 . 1 15 Heat Transferred 23899 | . 3031 1110 1443 2923 888 4080 1961 629 666 . 925 6243 Parts Sabotaged . | . . . . . . . . . . . . . Parts Stolen . | . . . . . . . . . . . . . Parts Stripped . | . . . . . . . . . . . . . Power Chain Reactions . | . . . . . . . . . . . . . Alert | -11 -10 -9 -9 -8 -8 -8 -7 -7 -7 -7 -6 -6 ------- Run | Yrd Mat Mat Min Mat Sto Gar Fac Low Low Dat Pro Fac Maximum Alert Level 4 | . . . . 1 . 4 2 . . . . 3 Low Security (%) 52 | 100 100 100 100 82 100 6 33 . . . . 2 Level 1 9 | . . . . 17 . 12 . . . . . 34 Level 2 26 | . . . . . . 24 66 . . . . 58 Level 3 5 | . . . . . . 25 . . . . . 4 Level 4 5 | . . . . . . 32 . . . . . . Level 5 . | . . . . . . . . . . . . . High Security . | . . . . . . . . . . . . . Max Security . | . . . . . . . . . . . . . Peak Influence 1283 | . 150 113 65 382 195 1283 673 . . . . 868 Initial 673 | . . 25 15 . 156 98 673 . . . . 175 Average 329 | . 51 42 13 107 162 801 422 . . . . 459 Influence Increases 5485 | . 381 307 206 737 250 1205 517 150 . . 175 1557 Destroy 0b10 Robot/C 3360 | . 300 240 140 460 140 860 320 120 . . 140 640 Destroy 0b10 Robot/NC 160 | . 10 10 15 25 15 . 35 . . . 10 40 Destroy Leader 618 | . 62 44 30 128 52 30 78 30 . . 10 154 Allied During Kill 67 | . . . . . . 35 . . . . 15 17 Successful Hack 85 | . 9 . . 6 . 22 42 . . . . 6 Disable Machine 225 | . . . . 60 30 . 30 . . . . 105 Anti-Garrison Action 300 | . . . . . . 150 . . . . . 150 Destroy Structure 250 | . . 13 21 28 13 78 12 . . . . 85 Advance Influence 150 | . . . . . . . . . . . . 150 Partial Spotted 15 | . . . . 15 . . . . . . . . Lose Combat Pursuer 255 | . . . . 15 . 30 . . . . . 210 Influence Decreases 4619 | . 321 327 246 367 468 74 1643 307 . . 134 732 Entered New Map 1013 | . . 35 25 . 214 54 610 59 . . . 16 Time Decay 2956 | . 321 292 221 357 254 . 583 248 . . 134 546 Lost Part 10 | . . . . 10 . . . . . . . . Lost Ally 40 | . . . . . . 20 . . . . . 20 Purge Threat 600 | . . . . . . . 450 . . . . 150 Squads Dispatched 25 | . 4 . . 4 . . 6 . . . . 11 Investigation 2 | . 2 . . . . . . . . . . . Extermination 7 | . . . . . . . 3 . . . . 4 Reinforcement 13 | . 2 . . 4 . . 3 . . . . 4 Assault 2 | . . . . . . . . . . . . 2 Garrison 1 | . . . . . . . . . . . . 1 Intercept . | . . . . . . . . . . . . . Searches Triggered . | . . . . . . . . . . . . . Construction Impeded 2 | . . . . 1 . . . . . . . 1 Haulers Reinforced 1 | . . . . . . . . . . . . 1 Active Scanning Responses . | . . . . . . . . . . . . . Cargo Convoy Interrupts . | . . . . . . . . . . . . . Stealth | -11 -10 -9 -9 -8 -8 -8 -7 -7 -7 -7 -6 -6 --------- Run | Yrd Mat Mat Min Mat Sto Gar Fac Low Low Dat Pro Fac Distress Signals 10 | . 2 2 . 1 1 . 1 . . . . 3 Communications Jammed . | . . . . . . . . . . . . . Distress Signals . | . . . . . . . . . . . . . Times Spotted 244 | . 26 20 23 29 11 41 24 4 5 . 10 51 Peak Tracking Total 9 | . 4 5 3 6 3 7 4 2 3 . 7 9 Tactical Retreats 22 | . 8 3 2 1 . 2 . . . . . 6 ECM-based Alert Blocks 18 | . 10 8 . . . . . . . . . . Traps | -11 -10 -9 -9 -8 -8 -8 -7 -7 -7 -7 -6 -6 ------- Run | Yrd Mat Mat Min Mat Sto Gar Fac Low Low Dat Pro Fac Traps Triggered 12 | . 2 . . . . 9 1 . . . . . Indirectly . | . . . . . . . . . . . . . Trap Hack Attempts . | . . . . . . . . . . . . . Triggered . | . . . . . . . . . . . . . Disarmed . | . . . . . . . . . . . . . Reprogrammed . | . . . . . . . . . . . . . Reused . | . . . . . . . . . . . . . Traps Extracted . | . . . . . . . . . . . . . Installed . | . . . . . . . . . . . . . Triggered . | . . . . . . . . . . . . . Machines | -11 -10 -9 -9 -8 -8 -8 -7 -7 -7 -7 -6 -6 ---------- Run | Yrd Mat Mat Min Mat Sto Gar Fac Low Low Dat Pro Fac Machines Disabled 19 | . . . . 4 2 1 2 . . . 2 8 Max in Single Turn 4 | . . . . 1 1 1 1 . . . 1 4 Garrison Access 1 | . . . . . . . . . . . . 1 Garrison Relay 2 | . . . . . . 2 . . . . . . Machines Repaired . | . . . . . . . . . . . . . Machines Dismantled . | . . . . . . . . . . . . . Machines Sabotaged . | . . . . . . . . . . . . . Overloaded Fab Kills . | . . . . . . . . . . . . . Hacking | -11 -10 -9 -9 -8 -8 -8 -7 -7 -7 -7 -6 -6 --------- Run | Yrd Mat Mat Min Mat Sto Gar Fac Low Low Dat Pro Fac Machines Accessed 39 | . 2 1 1 5 7 4 10 1 . 4 1 3 Terminals 27 | . 2 1 . 3 6 4 8 . . . 1 2 Fabricators . | . . . . . . . . . . . . . Repair Stations 1 | . . . . 1 . . . . . . . . Recycling Units . | . . . . . . . . . . . . . Scanalyzers 2 | . . . . 1 . . 1 . . . . . Garrison Access 3 | . . . . . 1 . 1 . . . . 1 Total Hacks 108 | . 6 2 1 12 11 10 21 1 . 31 4 9 Successful 83 | . 4 1 1 6 10 4 16 1 . 31 4 5 Failed 23 | . 2 1 . 5 1 6 4 . . . . 4 Catastrophic 1 | . . . . 1 . . . . . . . . Database Lockouts 2 | . . . . 1 . . 1 . . . . . Manual 35 | . 4 . . 5 6 3 11 . . . . 6 Terminals 62 | . 6 2 . 7 10 10 17 . . . 4 6 Fabricators . | . . . . . . . . . . . . . Repair Stations 3 | . . . . 3 . . . . . . . . Recycling Units . | . . . . . . . . . . . . . Scanalyzers 4 | . . . . 2 . . 2 . . . . . Garrison Access 6 | . . . . . 1 . 2 . . . . 3 Terminal Hacks 57 | . 2 1 1 1 4 3 8 1 . 31 4 1 Record 17 | . . . . . 1 . 1 . . 11 4 . Part Schematic 13 | . . . . . . . . . . 13 . . Robot Schematic 4 | . . . . . . . . . . 4 . . Robot Analysis 4 | . 2 . . . 1 . 1 . . . . . Prototype ID Bank 4 | . . 1 . . . . . . . 3 . . Open Door 4 | . . . 1 . 1 1 . 1 . . . . Open DSF 1 | . . . . . . . 1 . . . . . Branch Access Points 1 | . . . . . . . 1 . . . . . Alert Level 2 | . . . . 1 . . 1 . . . . . Unreport Threat 4 | . . . . . . . 3 . . . . 1 Zone Layout 1 | . . . . . 1 . . . . . . . Garrison Registry 1 | . . . . . . 1 . . . . . . Patrol Navigation 1 | . . . . . . 1 . . . . . . Fabricator Hacks . | . . . . . . . . . . . . . Repair Station Hacks 2 | . . . . 2 . . . . . . . . Scan Component 1 | . . . . 1 . . . . . . . . Repair 1 | . . . . 1 . . . . . . . . Recycling Unit Hacks . | . . . . . . . . . . . . . Scanalyzer 2 | . . . . 1 . . 1 . . . . . Retrieve Study 2 | . . . . 1 . . 1 . . . . . Garrison Access Hacks 2 | . . . . . 1 . . . . . . 1 Unlock Access 2 | . . . . . 1 . . . . . . 1 Unauthorized Hacks 20 | . 2 . . 2 5 1 7 . . . . 3 Terminals 18 | . 2 . . 2 5 1 7 . . . . 1 Botnet 18 | . 2 . . 2 5 1 7 . . . . 1 Fabricators . | . . . . . . . . . . . . . Repair Stations . | . . . . . . . . . . . . . Recycling Units . | . . . . . . . . . . . . . Scanalyzers . | . . . . . . . . . . . . . Garrison Access 2 | . . . . . . . . . . . . 2 Intercept 1 | . . . . . . . . . . . . 1 Watchers 1 | . . . . . . . . . . . . 1 Data Cores Recovered 2 | . . . . . . . 2 . . . . . Used 1 | . . . . . . . 1 . . . . . Hacking Detections 21 | . 1 1 . 3 5 3 4 . . . 1 3 Full Trace Events . | . . . . . . . . . . . . . Feedback Events . | . . . . . . . . . . . . . Feedback Blocked . | . . . . . . . . . . . . . Robot Schematics Acquired 4 | . . . . . . . . . . 4 . . Robots Built . | . . . . . . . . . . . . . Authchips . | . . . . . . . . . . . . . Time . | . . . . . . . . . . . . . Total Robot Build Rating . | . . . . . . . . . . . . . Part Schematics Acquired 13 | . . . . . . . . . . 13 . . Parts Built . | . . . . . . . . . . . . . Authchips . | . . . . . . . . . . . . . Time . | . . . . . . . . . . . . . Total Part Build Rating . | . . . . . . . . . . . . . Part Studies Acquired 1 | . . . . . . . 1 . . . . . Parts Repaired 1 | . . . . 1 . . . . . . . . Time 26 | . . . . 26 . . . . . . . . Parts Recycled . | . . . . . . . . . . . . . Recycled Matter . | . . . . . . . . . . . . . Retrieved Matter . | . . . . . . . . . . . . . Retrieved Components . | . . . . . . . . . . . . . Parts Scanalyzed . | . . . . . . . . . . . . . Part Schematics Acquired . | . . . . . . . . . . . . . Parts Damaged . | . . . . . . . . . . . . . Bothacking | -11 -10 -9 -9 -8 -8 -8 -7 -7 -7 -7 -6 -6 ------------ Run | Yrd Mat Mat Min Mat Sto Gar Fac Low Low Dat Pro Fac Used RIF Installer 2 | . . . . . . 2 . . . . . . Watcher Feeds 1 | . . . . . . 1 . . . . . . Robots Hacked 6 | . . . . . . . 5 1 . . . . Non-combat 6 | . . . . . . . 5 1 . . . . Combat . | . . . . . . . . . . . . . Robot Hacks Applied 9 | . . . . . . . 8 1 . . . . parse_system 2 | . . . . . . . 1 1 . . . . find_chute 2 | . . . . . . . 2 . . . . . find_recycling 2 | . . . . . . . 2 . . . . . ignore_parts 2 | . . . . . . . 2 . . . . . check_alert 1 | . . . . . . . 1 . . . . . Relay Couplers Released 6 | . . . . . . 5 . . . . . 1 Machine Destruction 5 | . . . . . . 4 . . . . . 1 Programmers 1 | . . . . . . 1 . . . . . . Fabnet Peak Effective % . | . . . . . . . . . . . . . Robots Rewired 3 | . . . . . . 3 . . . . . . Allies Hacked . | . . . . . . . . . . . . . Hacks Repelled . | . . . . . . . . . . . . . Allies | -11 -10 -9 -9 -8 -8 -8 -7 -7 -7 -7 -6 -6 -------- Run | Yrd Mat Mat Min Mat Sto Gar Fac Low Low Dat Pro Fac Total Allies 4 | . . . . . . 3 . . . . 1 . Largest Group 3 | . . . . . . 3 . . . . 1 1 Highest-Rated Group 96 | . . . . . . 71 . . . . 96 96 Highest-Rated Ally 96 | . . . . . . 31 . . . . 96 96 Total Orders 2 | . . . 2 . . . . . . . . . EXPLORE 1 | . . . 1 . . . . . . . . . RETURN 1 | . . . 1 . . . . . . . . . Ally Attacks 16 | . . . . . . 8 . . . . 3 5 Total Damage 556 | . . . . . . 173 . . . . . 383 Kills 4 | . . . . . . 3 . . . . . 1 Allies Corrupted . | . . . . . . . . . . . . . Allies Melted . | . . . . . . . . . . . . . Intel | -11 -10 -9 -9 -8 -8 -8 -7 -7 -7 -7 -6 -6 ------- Run | Yrd Mat Mat Min Mat Sto Gar Fac Low Low Dat Pro Fac Active Infowar (turns) 1455 | . 1058 397 . . . . . . . . . . Structural 8 | . 8 . . . . . . . . . . . ECM 1455 | . 1058 397 . . . . . . . . . . Robot Analysis Total 4 | . 2 . . . 1 . 1 . . . . . Derelict Logs Recovered 7 | . . . 2 . . . . 2 1 . 2 . Drone Launches 1 | . . . 1 . . . . . . . . . Drone Recoveries 1 | . . . 1 . . . . . . . . . Exploration | -11 -10 -9 -9 -8 -8 -8 -7 -7 -7 -7 -6 -6 ------------- Run | Yrd Mat Mat Min Mat Sto Gar Fac Low Low Dat Pro Fac Turns Passed 13823 | 45 1100 770 1177 930 558 1778 1812 2123 983 151 817 1579 Spaces Moved 7577 | 32 495 361 571 514 331 1086 1129 1125 507 81 401 944 Core 2 | 2 . . . . . . . . . . . . Treads . | . . . . . . . . . . . . . Legs 7575 | 30 495 361 571 514 331 1086 1129 1125 507 81 401 944 Wheels . | . . . . . . . . . . . . . Hover . | . . . . . . . . . . . . . Flight . | . . . . . . . . . . . . . Fastest Speed 50 | 50 120 120 120 110 112 112 112 112 187 187 187 112 Average Speed 148 | 115 153 166 172 118 123 130 127 183 187 187 187 116 Slowest Speed 190 | 120 190 190 190 186 186 187 187 187 187 187 187 187 Overloaded Moves . | . . . . . . . . . . . . . Propulsion Burnouts . | . . . . . . . . . . . . . Robots Hopped . | . . . . . . . . . . . . . Potential Cave-ins . | . . . . . . . . . . . . . Cave-ins Triggered . | . . . . . . . . . . . . . Exploration Rate (%) 55 | 4 54 26 98 52 43 85 34 99 70 71 62 22 Regions Visited 12 Branch Regions 6 Pre-discovered Areas 4 | . . . 2 . . . . 1 . 1 . . Known Exits Taken 2 | . . . . . 1 . 1 . . . . . Unknown Exits Taken 9 | 1 1 1 1 1 . . . 1 1 1 1 . Scrap Searched 12 | . . . 1 . . . . 3 7 . 1 . Spaces Dug 10 | . . . . . . . . . . . . 10 Terrain Destroyed 191 | . . 11 21 28 11 6 14 5 6 . 7 82 Melee . | . . . . . . . . . . . . . Projectile 149 | . . 11 21 28 11 6 14 5 6 . 7 40 AOE 42 | . . . . . . . . . . . . 42 Terrain Rammed . | . . . . . . . . . . . . . Walls Destroyed . | . . . . . . . . . . . . . Machines Disabled . | . . . . . . . . . . . . . Actions | -11 -10 -9 -9 -8 -8 -8 -7 -7 -7 -7 -6 -6 --------- Run | Yrd Mat Mat Min Mat Sto Gar Fac Low Low Dat Pro Fac Total 9301 | 38 712 487 700 738 446 1287 1439 1159 524 81 442 1248 Wait 954 | 4 117 68 74 128 82 38 242 8 10 1 12 170 Move 7564 | 31 494 360 570 513 330 1084 1128 1124 506 80 400 944 Hop . | . . . . . . . . . . . . . Pick Up 17 | . 2 2 2 . . 7 3 1 . . . . Fast Attach 39 | 3 5 5 3 9 4 3 2 1 . . . 4 Attach 9 | . 1 1 3 . . 3 1 . . . . . Detach 5 | . 1 1 2 . . . 1 . . . . . Swap 14 | . 1 . . . . . 3 4 . . . 6 Drop 42 | . 3 6 5 6 3 6 4 1 . . . 8 Fire 397 | . 77 22 31 44 15 70 26 9 8 . 12 83 Melee 15 | . . . . . . . 9 6 . . . . Ram . | . . . . . . . . . . . . . Kick 3 | . . . . . 1 . . . . . . 2 Crush . | . . . . . . . . . . . . . Escape Stasis 30 | . . . . . . 25 5 . . . . . Rewire 23 | . . . . . 3 20 . . . . . . Trap . | . . . . . . . . . . . . . Miscellaneous 189 | . 11 22 10 38 8 31 15 5 . . 18 31 Route ------- -11/Scrapyard -10/Materials (discovered 4 exits: *Mat x2 / [*Min] / [*Sub]) -9/Materials (discovered 2 exits: *Mat / *Min) -9/Mines (discovered 2 exits: *Mat x2) -8/Materials (discovered 2 exits: *Fac / *Sto) -8/Storage (discovered 2 exits: Fac / Gar) -8/Garrison (discovered 3 exits: *Fac x3) -7/Factory (discovered 4 exits: *Fac x2 / *Low x2) -7/Lower Caves -7/Lower Caves (discovered 2 exits: *Fac / *Dat) -7/Data Miner -6/Proximity Caves -6/Factory History --------- Turn | Location | Event 29 | -11/Scrapyard | Discovered new exit (range 15) 46 | -11/Scrapyard | Upgraded with Utility slot (x2) 46 | -11/Scrapyard | Entered Materials 295 | -10/Materials | Discovered new exit (range 5) 318 | -10/Materials | Build established: Mutant 422 | -10/Materials | Upgraded with Weapon slot (x1) 555 | -10/Materials | Core integrity fell below 50% 733 | -10/Materials | Discovered new exit (range 8) 864 | -10/Materials | Reached level 2 867 | -10/Materials | Upgraded with Propulsion slot (x1) 967 | -10/Materials | Discovered new exit (range 15) 1102 | -10/Materials | Core integrity fell below 20% 1143 | -10/Materials | Discovered new exit (range 9) 1146 | -10/Materials | Entered another Materials area 1147 | -9/Materials | Core integrity fell below 50% 1147 | -9/Materials | Core integrity fell below 20% 1148 | -9/Materials | Reached level 3 1580 | -9/Materials | Discovered new exit (range 16) 1836 | -9/Materials | Reached level 4 1850 | -9/Materials | Build established: Scavenger-Mutant 1863 | -9/Materials | Discovered new exit (range 15) 1916 | -9/Materials | Entered Mines 1936 | -9/Mines | Assembled infested the area 1941 | -9/Mines | Assisted by a Guerilla fighting off Assembled 2054 | -9/Mines | Learned location of Zion (-6) 2133 | -9/Mines | A weapon hastily lodged in a ceiling crevice suddenly fell to the ground 2172 | -9/Mines | Discovered new exit (range 10) 2858 | -9/Mines | Reached level 5 3012 | -9/Mines | Found the Drone Emporium 3026 | -9/Mines | Found Prototype Device 3026 | -9/Mines | Identified Decoy Drone Bay 3037 | -9/Mines | Discovered new exit (range 18) 3093 | -9/Mines | Entered Materials 3095 | -8/Materials | Reached level 6 3096 | -8/Materials | Upgraded with Propulsion slot (x1) 3096 | -8/Materials | Upgraded with Weapon slot (x1) 3327 | -8/Materials | Repaired Lgt. Armor Plating 3538 | -8/Materials | Build established: Scavenger-Gunner 3609 | -8/Materials | Discovered new exit (range 16) 3765 | -8/Materials | Reached level 7 3797 | -8/Materials | Central database locked down 3948 | -8/Materials | Discovered new exit (range 15) 3970 | -8/Materials | Reached level 8 4023 | -8/Materials | Entered Storage 4116 | -8/Storage | Reached level 9 4119 | -8/Storage | Upgraded with Propulsion slot (x1) 4273 | -8/Storage | Build established: Hacker-Gunner 4516 | -8/Storage | Discovered new exit (range 22) 4580 | -8/Storage | Identified exit to Garrison 4581 | -8/Storage | Entered Garrison 4639 | -8/Garrison | Triggered checkpoint 4639 | -8/Garrison | Reached level 10 4679 | -8/Garrison | Triggered checkpoint 4761 | -8/Garrison | Discovered new exit (range 11) 4845 | -8/Garrison | Triggered checkpoint 4904 | -8/Garrison | Garrison Relay disabled 4904 | -8/Garrison | Reached level 11 4937 | -8/Garrison | Triggered checkpoint 5199 | -8/Garrison | Triggered checkpoint 5259 | -8/Garrison | Discovered new exit (range 10) 5293 | -8/Garrison | Triggered checkpoint 5329 | -8/Garrison | Triggered checkpoint 5333 | -8/Garrison | Garrison Relay disabled 5489 | -8/Garrison | Triggered checkpoint 5518 | -8/Garrison | Discovered new exit (range 70) 5518 | -8/Garrison | Discovered new exit (range 74) 5518 | -8/Garrison | Discovered new exit (range 23) 5518 | -8/Garrison | Reached level 12 5731 | -8/Garrison | Upgraded with Utility slot (x2) 5814 | -8/Garrison | Installed Relay Interface Framework 5845 | -8/Garrison | Triggered checkpoint 6191 | -8/Garrison | Expanded RIF knowledge: Watcher Feeds 6359 | -8/Garrison | Entered Factory 6361 | -7/Factory | Reached level 13 6402 | -7/Factory | Central database locked down 6919 | -7/Factory | Reached level 14 7196 | -7/Factory | Discovered new exit (range 7) 7404 | -7/Factory | Discovered new exit (range 5) 7670 | -7/Factory | Discovered new exit (range 17) 7696 | -7/Factory | Identified exit to Lower Caves 8171 | -7/Factory | Entered Lower Caves 8173 | -7/Lower Caves | Reached level 15 8876 | -7/Lower Caves | Learned Factory terminal intel 9001 | -7/Lower Caves | Upgraded with Utility slot (x1) 9491 | -7/Lower Caves | Spotted B-75 Beast 9499 | -7/Lower Caves | Destroyed B-75 Beast 10101 | -7/Lower Caves | Learned location of Extension (-5) 10243 | -7/Lower Caves | Discovered new exit (range 11) 10294 | -7/Lower Caves | Entered another Lower Caves area 10303 | -7/Lower Caves | Discovered new exit (range 9) 10785 | -7/Lower Caves | Learned 8 Factory zone layouts 11087 | -7/Lower Caves | Entered a destroyed Warlord outpost 11172 | -7/Lower Caves | Discovered new exit (range 7) 11277 | -7/Lower Caves | Entered Data Miner 11277 | -7/Data Miner | Discovered new exit (range 7) 11309 | -7/Data Miner | Met Data Miner 11350 | -7/Data Miner | Acquired the access code to Warlord's prototype stash 11350 | -7/Data Miner | Learned location of Section 7 (-3) 11383 | -7/Data Miner | Received God Mode back door access code from Data Miner 11428 | -7/Data Miner | Entered Proximity Caves 11430 | -6/Proximity Caves | Reached level 16 11629 | -6/Proximity Caves | Spotter reported a threat 11785 | -6/Proximity Caves | Learned Factory trap positions 12000 | -6/Proximity Caves | Attracted the attention of an 0b10 base 12014 | -6/Proximity Caves | Core integrity fell below 50% 12026 | -6/Proximity Caves | Escorted by Enhanced Grunt 12212 | -6/Proximity Caves | Discovered new exit (range 18) 12245 | -6/Proximity Caves | Entered Factory 12245 | -6/Factory | Accompanied by 1 ally 12247 | -6/Factory | Loaded intel: 77 trap records 12247 | -6/Factory | Reached level 17 12248 | -6/Factory | Loaded intel: 25 terminal locations 12286 | -6/Factory | Reached level 18 12327 | -6/Factory | Upgraded with Propulsion slot (x1) 12327 | -6/Factory | Upgraded with Utility slot (x1) 12924 | -6/Factory | Garrison activated, responded to threat 12962 | -6/Factory | Identified exit to Garrison 13000 | -6/Factory | Reached level 19 13769 | -6/Factory | Core integrity fell below 50% 13802 | -6/Factory | Core integrity fell below 20% 13824 | -6/Factory | Destroyed by P-60 Hacker with Shock Rifle Last Messages --------------- 13798_ G-50 Soldier heat damages Adv. Heat Sink. 13798_ G-50 Soldier destroyed. 13799_ Power failure, Antimatter Reactor shutdown. 13799_ Critical hit (Burn: +37). 13801_ G-50 Soldier destroyed. 13805_ Overheating: Carbon-fiber Leg damaged (-26). 13805_ Overheating: Hvy. Particle Cannon+ damaged (-27). 13805_ Overheating: Imp. Heat Sink damaged (-15). 13805_ Critical hit (Burn: +37). 13805_ U-05 Engineer builds a Wall. 13808_ Overheating: System interference. 13808_ Hvy. Ion Cannon temporarily disabled. 13808_ Hvy. Particle Cannon+ temporarily disabled. 13810_ Overheating: System interference. 13810_ Energy Filter temporarily disabled. 13810_ Imp. Heat Sink temporarily disabled. 13811_ Power failure, Antimatter Reactor shutdown. 13811_ U-05 Engineer builds a Wall. 13813_ Flexi-carbon Leg broken. 13813_ Overheating: Short circuit. Map ----- +----------------------------------------------------+ | % | | ###########+#############+#############+########## | | ?????# #?# #??# """ #??? | | ?????# """"""" #?# #??# "T" #??? | | ?????#] """"""" #?# #??# // " " #??? | | ?????# """"""" #?# #??# // #??? | | ?????# """"""" #?# #??# ! #??? | | ?????# #?# #??# ##?? | | ?????# """""" ""#?# #??# """""" ##?? | | ?????# """""" ""#?# #??# """""" #??? | | ????????"""""" T"#?###########?## """""" #??? | | ????????"""""" ""#?????????????## %"""""" #??? | | ???????? ""#??????????????# % %##?? | | ??????? #??????????????# ##? | | ???????############??????????????################# | | ????????????????????????????????????# #???# "T | | ????????????????????????????????????# #???# %% | | ????????????????????????????????????###???#![[ | | ??????????????????????????????????????????#[[ | | ??????????????????????????????????????????#[[ % | | ??????????????????????????????????????????# | | ??????????????????????????????????????????# | | ?????????????? !???????????##????????????## | | ?????????????? ? "????####%############### ] | | ???????????? """"=#!%g;# ###+##### | | ???????????? "" %ug@!pi%% # | | ??????????# i!######% = # | | ?????????########u########### ? # = | | ####??######## ? ? / """"" # | | #??# ? ## """"" # | | #??# ! ? ##?""" * " | | #??# % " %! ## ? " | | / #??# "" ? ## """"" " | | #??# ## """"" """"""""" | | #??# %% ## """ " " " | | ] #??# ## ? ##" # ### | | ####### #########+####### ##### | | "" """"""? #???# ? | | "" """"""" #???# % | | """ """"""" #???# % | | """ """"""" #???# | | """ #???# | | """"""" #???# | | """"""" #???# | | ############## """"""" #???# ########### | | ?????????????# """"""" #???# # ?????# | | ?????????????# ?? # ?????? | | ?????????????# """"""" ? # ?????? | | ?????????????# """"""" ^ + ?????? | | ?????????????# """"""" # ?????? | +----------------------------------------------------+ Best States ------------- Heat Dissipation 87 Energy Generation 31 Energy Capacity 425 Matter Stores 300 Matter Capacity 300 Sight Range 18 Robot Scan Range 20 Terrain Scan Density 10 ECM Strength 1 Armor Coverage 600 Evasion (%) 55 Energy Filtering 30 Particle Charging 30 Offensive Hacking 36 Defensive Hacking 10 Item Schematics ----------------- Combat Drone Bay | -7/Data Miner | Free Biomechanical Wings | -7/Data Miner | Free Lgt. Regenerative Plating | -7/Data Miner | Free Exp. Weapon Shielding | -7/Data Miner | Free Imp. Lightning Gun | -7/Data Miner | Free Field Propulsion Drive | -7/Data Miner | Free Adv. Recoil Stabilizer | -7/Data Miner | Free Variable Charge Gun | -7/Data Miner | Free Energy Well | -7/Data Miner | Free Mass Driver | -7/Data Miner | Free Gyrokinetic Inverter | -7/Data Miner | Free Adv. Power Amplifier | -7/Data Miner | Free Adv. Target Analyzer | -7/Data Miner | Free Robot Schematics ------------------ G-47 Trooper | -7/Data Miner | Free H-55 Commando | -7/Data Miner | Free B-60 Warrior | -7/Data Miner | Free S-27 Virus | -7/Data Miner | Free Fabricated ------------ Nothing Repaired ---------- Lgt. Armor Plating | 14% | -8/Materials Studied --------- Hvy. Particle Cannon | -7/Factory | Hacked Alien Tech Used ----------------- None Achievements -------------- None Challenges ------------ None RPGLIKE | -11 -10 -9 -9 -8 -8 -8 -7 -7 -7 -7 -6 -6 --------- Run | Yrd Mat Mat Min Mat Sto Gar Fac Low Low Dat Pro Fac Levels Raised 18 | . 1 2 1 3 1 3 2 1 . . 1 3 XP Earned 30641 | 3000 1800 2900 1350 4700 2100 4532 3322 706 244 316 1750 3921 XP Spent 27240 | 1975 2360 3080 500 5550 1525 4475 2675 1700 . . . 3400 Upgrades 62 | 8 8 12 1 14 3 6 7 1 . . . 2 Propulsion Slot 4 | . 1 . . 1 1 . . . . . . 1 Utility Slot 6 | 2 . . . . . 2 . 1 . . . 1 Weapon Slot 2 | . 1 . . 1 . . . . . . . . Core Integrity 8 | . . 8 . . . . . . . . . . Heat Dissipation 8 | . 3 . . 5 . . . . . . . . Energy Generation 2 | . . . . . . . 2 . . . . . Energy Storage 2 | . . . . . . 2 . . . . . . Inventory Capacity 3 | . 1 . 1 . . 1 . . . . . . Sight Range 2 | . . . . . . . 2 . . . . . Sensor Range 10 | 6 . . . . 2 . 2 . . . . . Ranged Accuracy 6 | . 2 . . 2 . 1 1 . . . . . Hack Attack % 3 | . . . . 3 . . . . . . . . Hack Defense % 2 | . . . . 2 . . . . . . . . TH Damage % 4 | . . 4 . . . . . . . . . . Protomatter Created 2773 | . 147 185 69 531 122 583 230 121 . . 208 577 Integrity Restored 4020 | . 225 456 183 833 164 673 307 78 . . 417 684 Core 3752 | . 225 456 183 833 25 544 307 78 . . 417 684 Parts 268 | . . . . . 139 129 . . . . . . Protomatter Decayed 1335 | . 54 14 10 149 65 524 78 107 44 . 59 231 Game ------ Seed ChainMetafieldFacilitator Manual? 0 Play Time 01:45:16 Cumulative 45.5 hours Start 2025.11.19 @ 01:18:08 End 2025.11.19 @ 03:05:25 Sessions 1 Manual Loads 0 Difficulty Rogue Special Mode Winter2019/RPGLIKE Game No. 42 Rogue 17 Adventurer 18 Explorer 7 Win Type - Total 1 Types 1/0/0/0/0/0/0/0/0/0 Lore% 16 Gallery% 25 Achievement% 23 Wizard Run 0 Options --------- Layout 0 ASCII 0 Keyboard 1 Movement Numpad Keybinds 0 Fullscreen 1 Font 24/Smallcaps Map View 56x25 Zoom Use 16% Tactical HUD 1 Map Filters NONE Filters NONE Steam 1 RUN: 714eabb6-dd10-4341-af16-a5fcdd6a64d7